bitfinex-derivatives/quotes_ETHF0:USTF0_20210702
["timestamp","ask_amount","ask_price","bid_price","bid_amount"]
[1625257023977,0.96,2086.8,2085.8,4.68647]
[1625257024279,1.0,2087.2,2085.8,4.68647]
[1625257024479,0.05,2086.9,2085.8,4.68647]
[1625257024929,0.05,2086.9,2086.8,2.20527]
[1625257025132,0.05,2086.9,2086.8,5.89947]
[1625257025330,2.20527,2087.0,2086.8,5.89947]
[1625257026999,4.41054,2087.0,2086.8,5.89947]
[1625257029258,1.0,2088.0,2086.8,5.89947]
[1625257031016,2.20527,2087.5,2087.4,2.20527]
[1625257031213,2.20527,2087.5,2086.8,5.89947]
[1625257031867,49.4854,2087.2,2086.8,5.89947]
[1625257032821,49.4854,2087.2,2086.8,3.6942]
[1625257032918,51.8616,2087.2,2085.4,20.8329]
[1625257033020,2.20527,2086.6,2086.5,2.20527]
[1625257035077,4.41054,2086.6,2086.5,2.20527]
[1625257037585,4.41054,2086.6,2086.3,2.20527]
[1625257042958,49.1822,2086.4,2086.3,2.20527]
[1625257043060,51.5627,2086.4,2086.3,2.20527]
[1625257043261,51.5627,2086.4,2085.4,15.0739]
[1625257043358,51.5627,2086.4,2085.1,2.0]
[1625257043460,1.0,2086.3,2085.1,2.0]
[1625257045115,2.20527,2085.7,2085.5,2.20527]
[1625257046428,3.16857,2085.7,2085.5,2.20527]
[1625257047081,40.4722,2085.6,2085.5,2.20527]
[1625257047182,42.67747,2085.6,2085.5,2.20527]
[1625257047281,42.67747,2085.6,2085.3,2.20527]
[1625257048231,2.20527,2085.6,2085.3,2.20527]
[1625257049136,2.20527,2085.4,2085.3,2.20527]
[1625257050886,4.50897,2085.4,2085.3,2.20527]
[1625257052238,2.3037,2085.4,2085.3,2.20527]
[1625257052338,2.20527,2085.6,2085.3,2.20527]
[1625257055152,2.20527,2085.5,2085.3,2.20527]
[1625257055253,50.1433,2085.7,2085.3,2.20527]
[1625257056533,51.1059,2085.7,2085.3,2.20527]
[1625257056781,51.1059,2085.7,2085.1,2.0]
[1625257056782,51.1059,2085.7,2085.0,2.20527]
[1625257056881,56.1059,2085.7,2083.4,15.6518]
[1625257056983,1.0,2085.6,2083.4,14.6518]
[1625257057183,2.20527,2084.2,2084.1,2.20527]
[1625257057293,2.20527,2084.2,2083.2,14.6304]
[1625257057294,5.09247,2084.2,2083.2,14.6304]
[1625257057487,5.09247,2084.2,2082.1,14.6876]
[1625257057588,1.0,2084.1,2082.1,14.6876]
[1625257057888,41.7438,2083.3,2082.1,14.6876]
[1625257057986,45.2268,2083.3,2082.1,14.6876]
[1625257058540,45.2268,2083.3,2081.9,14.4662]
[1625257058841,1.0,2083.2,2081.4,4.759]
[1625257058942,1.0,2083.2,2080.7,1.0]
[1625257059041,1.0,2083.2,2080.6,4.1921]
[1625257059192,2.20527,2081.5,2081.4,2.20527]
[1625257059301,5.66987,2081.5,2081.4,2.20527]
[1625257059395,5.66987,2081.5,2081.2,2.20527]
[1625257059840,3.6479,2082.0,2081.2,2.20527]
[1625257059944,8.27075095,2086.7,2081.2,2.20527]
[1625257060200,5.9503,2084.2,2081.2,2.20527]
[1625257060394,48.1633,2083.3,2081.2,2.20527]
[1625257060545,51.4352,2083.3,2081.2,2.20527]
[1625257060647,51.4352,2083.3,2081.6,5.0]
[1625257060998,5.0,2083.2,2081.2,2.20527]
[1625257061201,2.20527,2081.9,2081.5,2.20527]
[1625257061399,2.20527,2082.2,2081.5,2.20527]
[1625257061699,16.6586,2083.8,2081.5,2.20527]
[1625257061801,52.5938,2083.4,2081.5,5.05957]
[1625257062251,16.7039,2083.8,2081.5,5.05957]
[1625257062350,15.7039,2083.8,2081.5,5.05957]
[1625257063205,2.20527,2083.0,2082.9,2.20527]
[1625257063354,15.7039,2083.8,2082.9,5.08897]
[1625257063452,1.0,2085.1,2082.9,5.08897]
[1625257063605,3.489,2085.2,2082.9,5.08897]
[1625257063606,2.5402,2085.2,2082.9,5.08897]
[1625257063802,2.5402,2085.2,2083.4,52.6265]
[1625257063904,2.5402,2085.2,2083.4,56.0577]
[1625257064412,1.0,2086.1,2083.4,56.0577]
[1625257065259,2.20527,2085.1,2085.0,2.20527]
[1625257065360,2.20527,2085.1,2085.0,5.06367]
[1625257065508,2.20527,2085.1,2085.0,2.8584]
[1625257066838,2.20527,2085.1,2084.8,2.20527]
[1625257067240,2.20527,2084.9,2084.8,2.20527]
[1625257068488,2.20527,2084.9,2083.6,58.0384]
[1625257069193,2.20527,2084.9,2084.8,2.20527]
[1625257069342,2.20527,2084.9,2084.8,4.56067]
[1625257069744,2.20527,2084.9,2084.8,2.3554]
[1625257070642,5.24157,2084.9,2083.6,58.0384]
[1625257071244,5.24157,2084.9,2084.4,2.20527]
[1625257073253,2.20527,2084.5,2084.4,2.20527]
[1625257073957,5.24157,2084.9,2084.4,2.20527]
[1625257074057,2.20527,2084.9,2084.4,2.20527]
[1625257074559,2.20527,2084.9,2084.6,44.0378]
[1625257075127,2.20527,2084.9,2084.4,2.20527]
[1625257075311,4.41054,2084.9,2084.4,2.20527]
[1625257077264,2.20527,2084.5,2084.4,2.20527]
[1625257077967,4.75917,2084.5,2084.4,2.20527]
[1625257078770,4.75917,2084.5,2082.9,15.2228]
[1625257078868,5.75917,2084.5,2082.9,15.2228]
[1625257079022,5.75917,2084.5,2081.8,1.0]
[1625257079120,5.75917,2084.5,2080.6,0.9698]
[1625257079320,2.20527,2083.7,2083.6,2.20527]
[1625257079419,5.78837,2083.7,2083.6,2.20527]
[1625257079626,5.78837,2083.7,2083.4,2.20527]
[1625257081788,3.5831,2083.7,2083.4,2.20527]
[1625257084164,15.5393,2085.2,2083.4,2.20527]
[1625257084263,1.0,2085.1,2083.4,5.82677]
[1625257084864,1.0,2085.1,2083.7,46.6558]
[1625257084965,15.5393,2085.2,2083.7,46.6558]
[1625257085214,3.3466,2085.9,2083.7,46.6558]
[1625257085316,2.20527,2084.7,2084.5,2.20527]
[1625257087970,5.10017,2084.7,2084.5,2.20527]
[1625257088923,5.10017,2084.7,2081.4,15.4039]
[1625257089075,1.0,2084.6,2081.7,16.4856]
[1625257089220,1.0,2084.6,2081.7,15.4856]
[1625257089323,1.0,2084.6,2084.0,2.20527]
[1625257089422,2.20527,2084.1,2084.0,2.20527]
[1625257089523,4.60047,2084.1,2084.0,2.20527]
[1625257089823,2.3952,2084.1,2084.0,2.20527]
[1625257090725,1.0,2085.3,2084.0,5.25717]
[1625257090825,15.2233,2085.7,2084.0,5.25717]
[1625257091377,2.20527,2085.5,2085.3,2.20527]
[1625257093477,2.20527,2085.4,2085.3,2.20527]
[1625257094729,2.20527,2085.4,2084.0,3.0519]
[1625257094879,1.0,2085.3,2084.0,3.0519]
[1625257094980,2.20527,2085.4,2084.0,3.0519]
[1625257095432,2.20527,2085.4,2085.3,2.20527]
[1625257095532,56.8787,2086.5,2085.3,2.20527]
[1625257096092,5.0,2086.6,2085.3,2.20527]
[1625257096192,5.0,2086.6,2085.3,5.79897]
[1625257097396,2.20527,2085.9,2085.7,2.20527]
[1625257099406,2.20527,2085.8,2085.7,2.20527]
[1625257100910,2.20527,2085.8,2084.8,51.0867]
[1625257101211,2.20527,2085.8,2084.2,15.3718]
[1625257101311,3.20527,2085.8,2084.2,15.3718]
[1625257101414,2.20527,2085.5,2085.4,2.20527]
[1625257102214,1.0,2086.5,2085.4,2.20527]
[1625257102315,5.0,2087.0,2085.4,2.20527]
[1625257102664,6.0,2087.0,2085.4,2.20527]
[1625257102965,47.1339,2086.7,2085.4,2.20527]
[1625257103418,2.20527,2085.7,2085.4,2.20527]
[1625257108474,2.20527,2085.7,2084.2,15.3718]
[1625257108825,2.20527,2085.7,2084.1,15.833]
[1625257108926,3.20527,2085.7,2084.1,15.833]
[1625257109477,2.20527,2085.0,2084.7,2.20527]
[1625257111482,2.20527,2084.9,2084.7,2.20527]
[1625257112636,2.20527,2084.9,2084.1,15.833]
[1625257112737,2.20527,2084.9,2083.1,68.1858]
[1625257112838,3.20527,2084.9,2083.1,68.1858]
[1625257113088,3.20527,2084.9,2083.1,73.1858]
[1625257113397,3.20527,2084.9,2083.1,68.1858]
[1625257113489,3.20527,2084.9,2084.5,2.20527]
[1625257113588,2.20527,2084.9,2084.5,2.20527]
[1625257115549,2.20527,2084.6,2084.5,2.20527]
[1625257115925,2.20527,2084.9,2084.5,2.20527]
[1625257117528,4.41054,2084.9,2084.5,2.20527]
[1625257118331,4.41054,2084.9,2083.1,68.1858]
[1625257118430,5.41054,2084.9,2083.1,68.1858]
[1625257119533,2.20527,2084.4,2084.3,2.20527]
[1625257119683,4.70507,2084.4,2084.3,2.20527]
[1625257121540,6.91034,2084.4,2084.3,2.20527]
[1625257128175,1.0,2085.0,2084.3,5.85097]
[1625257128274,0.9708,2085.8,2084.3,5.85097]
[1625257128376,1.0,2085.6,2084.3,5.85097]
[1625257129577,2.20527,2085.2,2085.0,2.20527]
[1625257129677,2.20527,2085.2,2085.0,5.86977]
[1625257131132,2.20527,2085.2,2085.0,3.6645]
[1625257131231,2.20527,2085.2,2083.7,42.9417]
[1625257131382,1.0,2085.1,2083.7,42.9417]
[1625257131482,2.20527,2085.2,2083.7,42.9417]
[1625257131583,2.20527,2084.7,2084.6,2.20527]
[1625257144237,4.56377,2084.7,2084.6,2.20527]
[1625257145710,6.76904,2084.7,2084.6,2.20527]
[1625257146452,6.76904,2084.7,2084.4,2.20527]
[1625257151883,6.76904,2084.7,2084.4,59.54797]
[1625257151982,3.76639843,2085.1,2084.4,59.54797]
[1625257152084,3.76564504,2085.3,2084.4,63.27657]
[1625257152234,2.76564504,2085.3,2084.4,63.27657]
[1625257152536,2.76675708,2085.4,2084.4,63.27657]
[1625257152885,2.76636659,2085.5,2084.4,63.27657]
[1625257153135,2.76982317,2085.4,2084.4,63.27657]
[1625257153240,5.80452317,2085.4,2084.4,63.27657]
[1625257153436,5.80452317,2085.4,2084.4,2.20527]
[1625257153786,2.20527,2084.5,2084.4,2.20527]
[1625257153888,5.88987,2084.5,2084.4,2.20527]
[1625257154889,5.88987,2084.5,2084.2,2.20527]
[1625257154990,5.88987,2084.5,2083.5,2.83257761]
[1625257155690,5.88987,2084.5,2083.4,2.83252822]
[1625257155789,52.1442,2084.3,2083.9,2.20527]
[1625257156040,5.88987,2084.5,2083.9,2.20527]
[1625257156491,10.88987,2084.5,2083.9,2.20527]
[1625257156645,52.6957,2084.0,2083.2,2.83272826]
[1625257156791,55.6106,2084.0,2083.2,2.83272826]
[1625257156891,56.568,2084.0,2083.2,2.83272826]
[1625257157202,56.568,2084.0,2082.9,2.8330956]
[1625257157306,57.568,2084.0,2082.9,2.8330956]
[1625257157553,62.568,2084.0,2082.9,1.3920956]
[1625257157760,2.20527,2083.2,2083.0,2.20527]
[1625257157858,5.41357,2083.2,2083.0,2.20527]
[1625257158558,50.9831,2083.1,2083.0,2.20527]
[1625257159406,5.41357,2083.2,2083.0,2.20527]
[1625257159757,2.20527,2083.1,2083.0,2.20527]
[1625257161219,2.20527,2083.1,2082.8,2.20527]
[1625257161320,2.20527,2083.1,2082.0,3.6795065]
[1625257161421,3.20527,2083.1,2081.9,18.33467363]
[1625257161720,3.20527,2083.1,2081.9,14.6551]
[1625257161819,2.20527,2082.5,2082.4,2.20527]
[1625257161922,5.76767,2082.5,2082.4,2.20527]
[1625257162222,48.52457,2082.5,2082.4,2.20527]
[1625257163386,48.52457,2082.5,2082.2,2.20527]
[1625257163535,48.52457,2082.5,2081.6,15.188]
[1625257163837,2.20527,2081.7,2081.6,2.20527]
[1625257163936,5.15387,2081.7,2081.6,2.20527]
[1625257164636,5.15387,2081.7,2081.1,3.67477706]
[1625257164841,5.15387,2081.7,2081.0,3.67503252]
[1625257165237,53.70647,2081.7,2081.0,3.67503252]
[1625257165437,53.70647,2081.7,2080.6,3.67541859]
[1625257165537,53.70647,2081.7,2080.7,0.18378417]
[1625257165839,53.70647,2081.7,2081.5,2.20527]
[1625257166391,53.70647,2081.7,2081.3,2.20527]
[1625257166740,5.15387,2081.7,2080.4,3.6709791]
[1625257166890,3.20527,2081.7,2080.3,3.67130196]
[1625257166992,2.20527,2081.7,2080.3,8.67130196]
[1625257167090,2.20527,2081.7,2080.4,0.18349174]
[1625257167295,2.20527,2081.7,2080.5,3.67074344]
[1625257167392,2.20527,2081.7,2080.7,41.7997]
[1625257167491,2.20527,2081.7,2080.7,44.1806]
[1625257167592,2.20527,2081.9,2080.7,44.1806]
[1625257167697,1.0,2082.2,2080.7,44.1806]
[1625257167793,2.20527,2082.2,2082.1,4.41054]
[1625257167992,2.20527,2082.2,2082.1,7.22024]
[1625257170503,2.20527,2082.2,2082.1,4.41054]
[1625257172358,2.20527,2082.4,2082.1,4.41054]
[1625257173921,2.20527,2082.4,2082.1,2.20527]
[1625257175392,2.20527,2082.4,2081.0,34.5543]
[1625257175490,1.0,2082.3,2081.0,29.7953]
[1625257175842,2.20527,2082.0,2081.5,2.20527]
[1625257177796,2.20527,2082.0,2081.9,2.20527]
[1625257178046,2.20527,2082.0,2081.5,2.20527]
[1625257179849,2.20527,2082.0,2081.8,2.20527]
[1625257181803,4.41054,2082.0,2081.8,2.20527]
[1625257184111,4.41054,2082.0,2081.8,4.93027]
[1625257184214,1.0,2083.0,2081.8,4.93027]
[1625257184724,58.6514,2082.7,2081.8,4.93027]
[1625257184825,61.0737,2082.7,2081.8,4.93027]
[1625257185275,2.4223,2082.7,2081.8,4.93027]
[1625257185876,2.20527,2082.2,2081.8,4.93027]
[1625257187890,2.20527,2082.2,2082.1,2.20527]
[1625257189156,1.0,2083.0,2082.1,2.20527]
[1625257189253,53.6531,2084.0,2082.1,2.20527]
[1625257189402,58.6531,2084.0,2082.1,2.20527]
[1625257189506,0.9574,2084.0,2082.1,2.20527]
[1625257189854,15.0668,2084.4,2082.2,5.0]
[1625257189955,2.20527,2083.5,2083.4,2.20527]
[1625257190054,2.20527,2083.5,2083.2,2.20527]
[1625257191656,1.0,2084.3,2083.2,2.20527]
[1625257191954,2.20527,2083.9,2083.7,2.20527]
[1625257193977,2.20527,2083.9,2083.8,2.20527]
[1625257194325,2.20527,2084.1,2083.8,2.20527]
[1625257195986,2.20527,2084.1,2084.0,2.20527]
[1625257196385,2.20527,2084.1,2083.8,2.20527]
[1625257196486,5.05177,2084.1,2083.8,2.20527]
[1625257197943,2.20527,2083.9,2083.8,2.20527]
[1625257199657,2.20527,2084.1,2083.8,2.20527]
[1625257199953,2.20527,2084.1,2083.9,2.20527]
[1625257204439,1.0,2085.0,2083.9,2.20527]
[1625257205998,2.20527,2084.9,2084.8,2.20527]
[1625257207204,5.11497,2084.9,2084.6,2.20527]
[1625257207310,5.11497,2084.9,2083.2,1.0]
[1625257207404,1.0,2084.8,2083.1,15.2866]
[1625257207504,5.759,2084.8,2083.1,15.2866]
[1625257208054,5.81877,2084.1,2083.9,2.20527]
[1625257208506,5.81877,2084.1,2083.9,2.15527]
[1625257210061,8.02404,2084.1,2083.9,2.15527]
[1625257211720,5.81877,2084.1,2083.9,2.15527]
[1625257218096,3.6135,2084.1,2083.9,2.15527]
[1625257218299,2.20527,2084.5,2083.9,2.15527]
[1625257218961,1.0,2084.8,2083.9,2.15527]
[1625257219056,3.57005392,2085.9,2083.9,2.15527]
[1625257219160,1.0,2085.5,2083.9,2.15527]
[1625257219662,4.5318,2085.5,2083.9,2.15527]
[1625257220068,4.5318,2085.5,2084.7,2.20527]
[1625257220165,2.20527,2084.8,2084.7,2.20527]
[1625257222528,2.20527,2085.2,2084.7,2.20527]
[1625257222682,2.20527,2085.2,2084.7,5.34437]
[1625257224184,2.20527,2085.2,2085.1,2.20527]
[1625257227297,1.0,2085.7,2085.1,2.20527]
[1625257227408,1.92351512,2086.3,2085.1,2.20527]
[1625257227508,2.92351512,2086.3,2085.1,2.20527]
[1625257227758,1.0,2086.3,2085.1,2.20527]
[1625257228262,2.20527,2086.1,2086.0,2.20527]
[1625257228861,2.20527,2086.1,2086.0,1.0682625]
[1625257230213,4.41054,2086.1,2086.0,1.0682625]
[1625257231117,1.0,2086.6,2086.0,1.0682625]
[1625257231217,1.92545678,2086.7,2086.0,4.5802625]
[1625257231316,1.92511341,2086.8,2086.0,4.5802625]
[1625257232172,1.92511341,2086.8,2086.7,2.20527]
[1625257232268,1.92511341,2086.8,2086.7,5.26487]
[1625257232523,1.92516798,2086.9,2086.7,5.26487]
[1625257232770,2.20527,2087.0,2086.7,5.26487]
[1625257233020,2.20527,2087.0,2086.8,57.949]
[1625257233971,2.20527,2087.0,2086.7,2.20527]
[1625257234226,2.20527,2087.0,2086.9,2.20527]
[1625257236852,2.20527,2087.0,2085.6,14.7067]
[1625257237004,1.0,2086.9,2085.6,14.7067]
[1625257238157,2.20527,2086.7,2086.4,2.20527]
[1625257240208,2.20527,2086.7,2086.6,2.20527]
[1625257240307,2.20527,2087.0,2086.6,2.20527]
[1625257241511,1.0,2087.8,2086.6,2.20527]
[1625257242210,2.20527,2087.7,2087.6,2.20527]
[1625257242313,15.4006,2088.3,2087.6,2.20527]
[1625257242613,1.91462435,2088.5,2087.6,2.20527]
[1625257242913,1.91520671,2088.6,2087.6,2.20527]
[1625257243216,1.9137825,2088.8,2087.6,2.20527]
[1625257243316,1.9137825,2088.8,2087.6,5.67007]
[1625257243417,2.9137825,2088.8,2087.6,5.67007]
[1625257243917,1.0,2088.8,2087.6,5.67007]
[1625257244218,2.20527,2088.5,2088.4,2.20527]
[1625257244768,2.20527,2088.5,2088.4,1.06950065]
[1625257245021,2.20527,2088.5,2088.2,2.20527]
[1625257246081,2.20527,2088.5,2087.0,3.238]
[1625257246182,6.93597,2088.5,2084.5,1.95524864]
[1625257246284,2.20527,2087.7,2087.6,2.20527]
[1625257246935,5.86307,2087.7,2087.6,2.20527]
[1625257247887,5.86307,2087.7,2085.6,1.0]
[1625257248136,6.86307,2087.7,2085.9,5.0]
[1625257248235,2.20527,2087.4,2087.1,2.20527]
[1625257248686,2.20527,2087.4,2085.7,15.5214]
[1625257248786,1.0,2087.3,2085.7,14.5214]
[1625257249239,1.0,2087.3,2085.7,19.5214]
[1625257250242,2.20527,2087.1,2087.0,2.20527]
[1625257250341,5.05667,2087.1,2087.0,2.20527]
[1625257253003,2.8514,2087.1,2087.0,2.20527]
[1625257254459,4.41054,2087.4,2087.0,2.20527]
[1625257254860,4.41054,2087.4,2087.1,50.8637]
[1625257255061,1.0,2088.4,2087.1,50.8637]
[1625257256363,2.20527,2088.2,2088.1,2.20527]
[1625257260025,2.20527,2088.2,2088.1,1.0696021]
[1625257260776,2.20527,2088.2,2087.8,2.20527]
[1625257260876,4.77367,2088.2,2087.8,2.20527]
[1625257261586,4.77367,2088.2,2086.9,58.956]
[1625257261685,1.0,2088.1,2086.9,58.956]
[1625257262336,2.20527,2087.4,2087.3,2.20527]
[1625257262537,5.97567,2087.4,2087.3,2.20527]
[1625257263991,3.7704,2087.4,2087.3,2.20527]
[1625257268114,2.20527,2087.6,2087.3,2.20527]
[1625257268415,2.20527,2087.6,2087.5,2.20527]
[1625257269670,2.20527,2087.8,2087.5,2.20527]
[1625257269920,2.20527,2087.8,2087.5,55.94487]
[1625257270420,2.20527,2087.8,2087.7,2.20527]
[1625257272491,2.20527,2087.8,2087.7,4.75977]
[1625257274443,2.20527,2087.8,2087.7,2.20527]
[1625257285960,7e-05,2087.8,2087.7,2.20527]
[1625257286062,2.20527,2088.2,2087.7,2.20527]
[1625257286361,2.20527,2088.2,2088.1,56.3219]
[1625257286560,2.20527,2088.2,2088.1,61.73457]
[1625257286860,2.20527,2088.2,2088.1,5.41267]
[1625257288414,2.20527,2088.2,2088.1,2.20527]
[1625257295634,2.20527,2088.4,2088.1,2.20527]
[1625257296546,2.20527,2088.4,2088.3,2.20527]
[1625257300103,2.20527,2088.4,2088.1,2.20527]
[1625257300553,2.20527,2088.4,2088.2,2.20527]
[1625257302210,2.20527,2088.4,2088.2,4.67147]
[1625257302554,1.0,2088.7,2088.2,4.67147]
[1625257302656,2.20527,2088.8,2088.6,41.9076]
[1625257303013,2.20527,2088.8,2088.2,4.67147]
[1625257304608,2.20527,2088.8,2088.7,2.20527]
[1625257305564,2.20527,2088.8,2088.7,1.06985635]
[1625257307266,2.20527,2088.8,2088.7,45.66005635]
[1625257307466,2.20527,2088.8,2088.7,1.06985635]
[1625257308318,2.20527,2088.8,2088.7,45.65365635]
[1625257308771,2.20527,2088.8,2088.7,1.06985635]
[1625257308870,2.20527,2088.8,2088.2,2.20527]
[1625257309322,2.20527,2088.8,2088.5,49.5522]
[1625257310382,2.20527,2088.8,2088.2,2.20527]
[1625257310632,2.20527,2088.8,2088.2,4.41054]
[1625257311241,2.20527,2088.8,2088.5,53.27]
[1625257311392,2.20527,2088.8,2088.2,4.41054]
[1625257312699,2.20527,2088.8,2088.7,2.20527]
[1625257315806,3.58306673,2088.8,2088.7,2.20527]
[1625257317414,4.13503357,2088.8,2088.7,2.20527]
[1625257318065,3.58370405,2088.8,2088.7,2.20527]
[1625257318264,3.58370405,2088.8,2088.7,61.64777]
[1625257318516,2.20527,2088.8,2088.7,61.64777]
[1625257319617,3.585434,2088.8,2088.7,61.64777]
[1625257320018,2.20527,2088.8,2088.7,61.64777]
[1625257320322,3.5854401,2088.8,2088.7,61.64777]
[1625257321920,3.5854401,2088.8,2088.7,2.20527]
[1625257322122,2.20527,2088.8,2088.7,2.20527]
[1625257322673,4.13914518,2088.8,2088.7,2.20527]
[1625257323125,4.13914518,2088.8,2088.7,58.60687]
[1625257323445,4.96917555,2088.8,2088.7,58.60687]
[1625257323834,4.96917555,2088.8,2088.7,2.20527]
[1625257324338,4.96917555,2088.8,2088.7,58.66507]
[1625257324437,4.96917555,2088.8,2088.7,2.20527]
[1625257326954,4.96917555,2088.8,2088.7,55.48417]
[1625257327204,4.96917555,2088.8,2088.7,2.20527]
[1625257327309,2.20527,2088.8,2088.7,2.20527]
[1625257329266,5.98987,2088.8,2087.0,14.5206]
[1625257329364,1.0,2088.7,2087.0,14.5206]
[1625257329615,1.38397591,2088.2,2087.0,14.5206]
[1625257329715,1.0,2088.1,2087.0,14.5206]
[1625257329915,1.0,2088.1,2086.9,14.6414]
[1625257330016,1.0,2088.1,2087.5,49.9816]
[1625257330118,3.68377591,2088.2,2087.5,49.9816]
[1625257330669,3.68377591,2088.2,2087.9,45.0529]
[1625257330770,3.68377591,2088.2,2088.1,4.41054]
[1625257330872,2.2998,2088.2,2088.1,4.41054]
[1625257331872,3.68439103,2088.2,2088.1,4.41054]
[1625257335590,1.38459103,2088.2,2088.1,4.41054]
[1625257336443,1.38826245,2088.3,2088.1,4.41054]
[1625257339301,1.3871971,2088.2,2088.1,4.41054]
[1625257341177,1.94222719,2088.2,2088.1,4.41054]
[1625257342425,1.3871387,2088.2,2088.1,4.41054]
[1625257343279,1.94214869,2088.2,2088.1,4.41054]
[1625257346306,1.94214869,2088.2,2088.1,62.22714]
[1625257348107,1.94214869,2088.2,2088.1,4.41054]
[1625257348310,4.43434869,2088.2,2088.1,4.41054]
[1625257350513,4.43434869,2088.2,2088.1,51.93714]
[1625257351018,4.43434869,2088.2,2088.1,4.41054]
[1625257351466,1.94214869,2088.2,2088.1,4.41054]
[1625257351567,1.94214869,2088.2,2088.1,48.92584]
[1625257352566,4.97976813,2088.3,2088.1,48.92584]
[1625257352717,4.97976813,2088.3,2088.1,4.41054]
[1625257352918,2.77513652,2088.2,2088.1,4.41054]
[1625257353624,1.94262455,2088.2,2088.1,4.41054]
[1625257353821,1.94262455,2088.2,2088.1,63.60974]
[1625257353972,2.77586277,2088.2,2088.1,63.60974]
[1625257354172,2.77586277,2088.2,2088.1,4.41054]
[1625257357782,5.81525943,2088.3,2088.1,4.41054]
[1625257358634,2.20527,2088.3,2088.2,47.399]
[1625257359935,5.81530853,2088.3,2088.2,47.399]
[1625257360037,5.81530853,2088.3,2088.1,4.41054]
[1625257365113,3.61020202,2088.2,2088.1,4.41054]
[1625257365616,5.02937006,2088.2,2088.1,4.41054]
[1625257367115,3.61020202,2088.2,2088.1,4.41054]
[1625257367467,5.02938962,2088.2,2088.1,4.41054]
[1625257368167,1.4191876,2088.2,2088.1,4.41054]
[1625257369217,1.4191876,2088.2,2088.1,53.46814]
[1625257369521,1.4191876,2088.2,2088.1,4.41054]
[1625257369720,5.03070996,2088.2,2088.1,4.41054]
[1625257370170,1.4191876,2088.2,2088.1,4.41054]
[1625257371322,1.4191876,2088.2,2087.3,1.41667234]
[1625257371422,1.0,2088.1,2087.3,1.41667234]
[1625257371625,1.9676,2088.1,2087.3,1.41667234]
[1625257371974,52.5469,2087.4,2087.3,1.41667234]
[1625257372077,54.9672,2087.4,2087.1,1.41726622]
[1625257372376,6.10763842,2087.3,2086.6,1.41758604]
[1625257372476,7.10763842,2087.3,2086.6,1.41758604]
[1625257372931,2.20527,2086.9,2086.8,2.20527]
[1625257373031,5.04097,2086.9,2086.8,2.20527]
[1625257373134,5.04097,2086.9,2086.6,2.20527]
[1625257373884,5.04097,2086.9,2086.7,44.9623]
[1625257375188,5.04097,2086.9,2086.6,2.20527]
[1625257377189,5.04097,2086.9,2086.6,62.51727]
[1625257379292,5.04097,2086.9,2086.6,2.20527]
[1625257381046,7.24624,2086.9,2086.6,2.20527]
[1625257381999,7.24624,2086.9,2086.8,41.8399]
[1625257382247,1.0,2087.2,2086.6,2.20527]
[1625257382347,3.32909652,2087.3,2086.6,2.20527]
[1625257382499,4.32909652,2087.3,2086.6,2.20527]
[1625257382799,1.3867162,2087.2,2086.6,2.20527]
[1625257383049,1.3867162,2087.2,2087.1,2.20527]
[1625257383613,5.53345588,2087.3,2087.1,2.20527]
[1625257384467,3.59148291,2087.3,2087.1,2.20527]
[1625257384967,3.59148291,2087.3,2087.1,4.41054]
[1625257385768,2.20527,2087.3,2087.1,4.41054]
[1625257386072,3.32555975,2087.4,2087.1,4.41054]
[1625257386171,8.36272321,2087.7,2087.1,12.24884]
[1625257386172,0.42512321,2087.7,2087.1,12.24884]
[1625257386570,1.38655604,2087.8,2087.1,12.24884]
[1625257386871,2.77311209,2088.0,2087.1,12.24884]
[1625257387020,2.77311209,2088.0,2087.9,4.41054]
[1625257387121,2.77311209,2088.0,2087.9,13.19474]
[1625257387222,3.60504571,2088.2,2087.9,13.19474]
[1625257387321,1.38739702,2088.2,2087.9,13.19474]
[1625257387572,1.38739702,2088.2,2088.1,52.3803]
[1625257387672,1.38739702,2088.2,2088.1,57.3803]
[1625257387771,2.20527,2089.0,2088.1,57.3803]
[1625257388022,4.44277786,2089.4,2088.1,57.3803]
[1625257388120,4.44277786,2089.4,2088.1,52.3803]
[1625257388272,1.0,2089.3,2088.1,57.3803]
[1625257388471,1.0,2089.3,2088.8,41.9292]
[1625257388573,4.4429998,2089.5,2088.8,45.3738]
[1625257388921,1.41868925,2089.4,2088.8,45.3738]
[1625257389023,1.41868925,2089.4,2089.3,2.20527]
[1625257389126,1.41868925,2089.4,2089.3,4.98547]
[1625257390984,3.62395925,2089.4,2089.3,4.98547]
[1625257391082,3.62395925,2089.4,2089.3,2.7802]
[1625257391185,3.62395925,2089.4,2089.0,2.20527]
[1625257391486,1.41872453,2089.3,2089.0,2.20527]
[1625257391934,42.5741,2089.2,2089.0,2.20527]
[1625257392635,2.20527,2089.4,2089.0,2.20527]
[1625257392937,1.41874529,2089.3,2089.0,2.20527]
[1625257393037,2.20527,2089.1,2089.0,4.41054]
[1625257393487,1.0,2089.4,2089.0,4.41054]
[1625257393588,4.44109106,2089.6,2089.0,4.41054]
[1625257394090,1.41872214,2089.5,2089.0,4.41054]
[1625257395047,2.20527,2089.1,2089.0,4.41054]
[1625257395145,2.20527,2089.1,2089.0,2.20527]
[1625257396948,3.20527,2089.4,2089.0,2.20527]
[1625257397047,2.20527,2089.4,2089.0,2.20527]
[1625257397748,42.8736,2089.3,2089.0,2.20527]
[1625257398649,2.20527,2089.4,2089.0,2.20527]
[1625257400249,57.1918,2089.1,2089.0,2.20527]